bitfinex/quotes_BTCUSD_20241203
["timestamp","ask_amount","ask_price","bid_price","bid_amount"]
[1733228823236,0.00554946,94952.0,94951.0,0.1081639]
[1733228823467,0.0027288,94952.0,94951.0,0.1081639]
[1733228824117,0.0017288,94952.0,94951.0,0.1071639]
[1733228824334,0.0017288,94952.0,94951.0,0.1061639]
[1733228824586,0.0037288,94952.0,94951.0,0.1081639]
[1733228825035,0.0027288,94952.0,94951.0,0.1071639]
[1733228825254,0.0037288,94952.0,94951.0,0.1081639]
[1733228825685,0.0027288,94952.0,94951.0,0.1071639]
[1733228825904,0.0017288,94952.0,94951.0,0.1061639]
[1733228826121,0.0037288,94952.0,94951.0,0.1131639]
[1733228826356,0.0027288,94952.0,94951.0,0.1071639]
[1733228826792,0.0027288,94952.0,94951.0,0.1161639]
[1733228826793,0.0037288,94952.0,94951.0,0.1161639]
[1733228827455,0.00654866,94952.0,94951.0,0.1161639]
[1733228828132,0.00554866,94952.0,94951.0,0.1151639]
[1733228828624,0.00654866,94952.0,94951.0,0.1191639]
[1733228830784,0.00714797,94952.0,94951.0,0.14046812]
[1733228831035,0.210625,94956.0,94955.0,3.77988985]
[1733228832206,0.2318348,94956.0,94955.0,3.77988985]
[1733228832425,0.2338348,94956.0,94955.0,3.78988985]
[1733228832640,0.2328348,94956.0,94955.0,3.78388985]
[1733228832861,0.2318348,94956.0,94955.0,3.77988985]
[1733228834187,0.2318348,94956.0,94955.0,3.78088985]
[1733228836645,0.38566338,94956.0,94955.0,3.78088985]
[1733228837075,0.38566338,94956.0,94955.0,3.77988985]
[1733228837317,0.38866338,94956.0,94955.0,3.77988985]
[1733228842912,0.38866338,94956.0,94955.0,3.78075425]
[1733228843874,0.46989218,94956.0,94955.0,3.78075425]
[1733228844102,0.57272364,94956.0,94955.0,3.78075425]
[1733228852572,0.46989218,94956.0,94955.0,3.78075425]
[1733228864302,0.39039218,94956.0,94955.0,3.78075425]
[1733228869444,0.59039218,94956.0,94955.0,3.78075425]
[1733228869865,1.12429218,94956.0,94955.0,3.78075425]
[1733228882175,1.12369218,94956.0,94955.0,3.78075425]
[1733228883255,1.12343085,94956.0,94955.0,3.78075425]
[1733228883460,1.12163753,94956.0,94955.0,3.78075425]
[1733228883949,1.12163753,94956.0,94955.0,3.77858043]
[1733228884160,1.26399855,94956.0,94955.0,3.77858043]
[1733228884586,1.12163753,94956.0,94955.0,3.77858043]
[1733228884801,1.12163753,94956.0,94955.0,3.77702958]
[1733228885845,1.22446899,94956.0,94955.0,3.77702958]
[1733228886481,1.12163753,94956.0,94955.0,3.77702958]
[1733228887689,1.12163753,94956.0,94955.0,3.77672374]
[1733228891204,1.26400817,94956.0,94955.0,3.73488617]
[1733228891420,1.79448451,94956.0,94955.0,3.62957117]
[1733228891659,1.65949833,94956.0,94955.0,3.62957117]
[1733228891870,1.65949833,94956.0,94955.0,3.52425617]
[1733228892295,1.65649833,94956.0,94955.0,3.52425617]
[1733228892508,1.66349833,94956.0,94955.0,3.52525617]
[1733228892724,1.68723204,94956.0,94955.0,3.41894117]
[1733228892948,1.69023204,94956.0,94955.0,3.41894117]
[1733228893175,1.66849833,94956.0,94955.0,3.41994117]
[1733228893399,1.68722132,94956.0,94955.0,3.41894117]
[1733228893820,1.72317954,94956.0,94955.0,3.31562617]
[1733228894259,1.69245655,94956.0,94955.0,3.31562617]
[1733228894719,1.69245655,94956.0,94955.0,3.29456317]
[1733228894926,1.69245655,94956.0,94955.0,3.25243717]
[1733228895144,1.69245655,94956.0,94955.0,3.21031117]
[1733228895359,1.69353838,94956.0,94955.0,3.21031117]
[1733228895848,1.69353838,94956.0,94955.0,3.14712217]
[1733228896082,1.69353838,94956.0,94955.0,3.12605917]
[1733228896308,1.69353838,94956.0,94955.0,3.10499617]
[1733228896515,1.67258016,94956.0,94955.0,3.10499617]
[1733228896735,1.67258016,94956.0,94955.0,2.52897017]
[1733228897014,1.67258016,94956.0,94955.0,2.46578117]
[1733228897560,1.90955871,94956.0,94955.0,2.46578117]
[1733228897789,1.67258016,94956.0,94955.0,2.40259217]
[1733228898026,1.67258016,94956.0,94955.0,2.36046617]
[1733228898963,1.67258016,94956.0,94955.0,2.31834017]
[1733228899168,1.67258016,94956.0,94955.0,2.29727717]
[1733228899383,1.67258016,94956.0,94955.0,2.25515117]
[1733228899815,1.67258016,94956.0,94955.0,2.21302517]
[1733228900025,1.67258016,94956.0,94955.0,2.14983617]
[1733228900651,1.67258016,94956.0,94955.0,2.08664717]
[1733228900859,1.67258016,94956.0,94955.0,2.04452117]
[1733228901325,1.69326452,94956.0,94955.0,2.04452117]
[1733228901746,1.93004665,94956.0,94955.0,2.00239517]
[1733228901959,1.93004665,94956.0,94955.0,1.93920617]
[1733228901960,1.69326452,94956.0,94955.0,1.93920617]
[1733228902213,1.56661692,94956.0,94955.0,1.93920617]
[1733228902433,1.62878033,94956.0,94955.0,1.93920617]
[1733228902641,0.59280939,94956.0,94955.0,0.0028644]
[1733228902856,0.54484579,94956.0,94955.0,0.0028644]
[1733228903069,0.45015141,94956.0,94955.0,0.0028644]
[1733228903725,0.44415141,94956.0,94955.0,0.0018644]
[1733228903938,0.44815141,94956.0,94955.0,0.0018644]
[1733228904346,0.49415656,94956.0,94955.0,0.0018644]
[1733228904552,0.48486793,94956.0,94955.0,0.0008644]
[1733228904775,0.43886278,94956.0,94955.0,0.0008644]
[1733228905276,0.23486278,94956.0,94955.0,0.0008644]
[1733228905518,0.24686278,94956.0,94955.0,0.0008644]
[1733228905755,0.23786278,94956.0,94955.0,0.0008644]
[1733228906000,0.24486278,94956.0,94955.0,0.0008644]
[1733228906242,0.22117842,94956.0,94955.0,0.0008644]
[1733228906470,0.22117842,94956.0,94955.0,0.0771644]
[1733228906758,0.22417842,94956.0,94955.0,0.0771644]
[1733228906989,0.22817842,94956.0,94955.0,0.0771644]
[1733228907463,0.02063921,94956.0,94955.0,0.18187699]
[1733228907923,0.01681063,94956.0,94955.0,0.18187699]
[1733228908173,0.0017288,94956.0,94955.0,0.18187699]
[1733228908418,0.01165426,94956.0,94955.0,0.18187699]
[1733228908679,0.0512309,94956.0,94955.0,0.18187699]
[1733228908938,0.05315946,94956.0,94955.0,0.18187699]
[1733228909199,0.05315946,94956.0,94955.0,0.18387699]
[1733228909654,0.05529924,94956.0,94955.0,0.18387699]
[1733228910152,0.01179714,94956.0,94955.0,0.18387699]
[1733228910377,0.01277928,94956.0,94955.0,0.18387699]
[1733228910598,0.0106395,94956.0,94955.0,0.18387699]
[1733228910824,0.0106395,94956.0,94955.0,0.17967699]
[1733228911050,0.0106395,94956.0,94955.0,0.17547699]
[1733228912244,0.0106395,94956.0,94955.0,0.0707644]
[1733228912504,0.03734386,94956.0,94955.0,0.0707644]
[1733228912727,0.0106395,94956.0,94955.0,0.0716279]
[1733228913996,0.0106395,94956.0,94955.0,0.0028635]
[1733228918359,0.3606395,94956.0,94955.0,0.0028635]
[1733228918566,0.46010193,94956.0,94955.0,0.0028635]
[1733228918781,0.45610193,94956.0,94955.0,0.0008635]
[1733228919199,0.45910193,94956.0,94955.0,0.0008635]
[1733228919406,0.45710193,94956.0,94955.0,0.0008635]
[1733228919610,0.45610193,94956.0,94955.0,0.0008635]
[1733228920059,0.45910193,94956.0,94955.0,0.0008635]
[1733228921010,0.46510193,94956.0,94955.0,0.0008635]
[1733228921214,0.45910193,94956.0,94955.0,0.0008635]
[1733228921419,0.46610193,94956.0,94955.0,0.0008635]
[1733228921918,0.48422017,94956.0,94955.0,0.0008635]
[1733228922131,0.48722017,94956.0,94955.0,0.0008635]
[1733228925996,0.46610193,94956.0,94955.0,0.0008635]
[1733228929887,0.26610193,94956.0,94955.0,0.0008635]
[1733228930106,0.0166395,94956.0,94955.0,0.0803635]
[1733228930314,0.01877928,94956.0,94955.0,0.0803635]
[1733228931175,0.03987493,94956.0,94955.0,0.0803635]
[1733228932506,0.0834995,94956.0,94955.0,0.0803635]
[1733228934148,0.0834995,94956.0,94955.0,0.0008635]
[1733228936030,0.06240385,94956.0,94955.0,0.0008635]
[1733228939223,0.05940385,94956.0,94955.0,0.0008635]
[1733228939891,0.01577928,94956.0,94955.0,0.0833635]
[1733228940110,0.0136395,94956.0,94955.0,0.0833635]
[1733228940327,0.0136395,94956.0,94955.0,0.1328635]
[1733228940328,0.0066395,94956.0,94955.0,0.1328635]
[1733228940561,0.0196395,94956.0,94955.0,0.1328635]
[1733228941017,0.0066395,94956.0,94955.0,0.1328635]
[1733228941227,0.02772933,94956.0,94955.0,0.1328635]
[1733228941441,0.02972933,94956.0,94955.0,0.1328635]
[1733228941644,0.03672933,94956.0,94955.0,0.1328635]
[1733228941855,0.03472933,94956.0,94955.0,0.1328635]
[1733228942282,0.02772933,94956.0,94955.0,0.1328635]
[1733228947906,0.0066395,94956.0,94955.0,0.1328635]
[1733228954375,0.08784095,94956.0,94955.0,0.0008635]
[1733228954612,0.421252,94955.0,94951.0,0.00145131]
[1733228954857,0.21063,94953.0,94951.0,0.00145131]
[1733228955109,0.00213978,94952.0,94951.0,0.00145131]
[1733228955566,0.00677096,94952.0,94951.0,0.00145131]
[1733228957681,0.10884761,94952.0,94951.0,0.00145131]
[1733228959741,0.25884761,94952.0,94951.0,0.00145131]
[1733228959952,0.15463118,94952.0,94951.0,0.00145131]
[1733228960170,0.15677096,94952.0,94951.0,0.00145131]
[1733228963597,0.15677096,94952.0,94951.0,0.07775131]
[1733228964023,0.15463118,94952.0,94951.0,0.07775131]
[1733228964233,0.00463118,94952.0,94951.0,0.07775131]
[1733228964444,0.00463118,94952.0,94951.0,0.12605131]
[1733228964650,0.001727,94955.0,94951.0,0.2307639]
[1733228964863,0.00461233,94952.0,94951.0,0.12605131]
[1733228965328,0.001727,94955.0,94951.0,0.12605131]
[1733228966173,0.00461696,94954.0,94952.0,0.10471259]
[1733228970660,0.001727,94955.0,94952.0,0.10471259]
[1733228970881,0.001727,94955.0,94953.0,0.0792]
[1733228971087,0.001727,94955.0,94954.0,0.10471259]
[1733228972107,0.00636676,94955.0,94954.0,0.10471259]
[1733228973000,0.001727,94955.0,94954.0,0.10471259]
[1733228973564,0.00636676,94955.0,94954.0,0.10471259]
[1733228976043,0.03037684,94955.0,94954.0,0.10471259]
[1733228976262,0.03037684,94955.0,94951.0,0.04975131]
[1733228976263,0.210628,94954.0,94951.0,0.00145131]
[1733228976472,0.421257,94954.0,94952.0,0.10471259]
[1733228976705,0.00463514,94953.0,94952.0,0.10471259]
[1733228976907,0.07317177,94953.0,94952.0,0.10471259]
[1733228987850,0.210632,94952.0,94951.0,0.00145131]
[1733228988096,0.360632,94952.0,94951.0,0.00145131]
[1733228988333,0.36526457,94952.0,94951.0,0.00145131]
[1733228992382,0.36299495,94952.0,94951.0,0.00145131]
[1733228995574,0.36299495,94952.0,94951.0,0.1061639]
[1733229000277,0.36299495,94952.0,94951.0,0.00145131]
[1733229002782,0.36199495,94952.0,94951.0,0.00145131]
[1733229003385,0.36299495,94952.0,94951.0,0.00145131]
[1733229004424,0.36499495,94952.0,94951.0,0.00145131]
[1733229004632,0.36399495,94952.0,94951.0,0.00145131]
[1733229004880,0.36999495,94952.0,94951.0,0.00145131]
[1733229005196,0.47282641,94952.0,94951.0,0.00145131]
[1733229006977,0.36999495,94952.0,94951.0,0.00145131]
[1733229007185,0.36999495,94952.0,94951.0,0.08075131]
[1733229009229,0.36999495,94952.0,94951.0,0.00145131]
[1733229013321,0.36399495,94952.0,94951.0,0.00145131]
[1733229013592,0.36799495,94952.0,94951.0,0.00145131]
[1733229014106,0.36999495,94952.0,94951.0,0.00145131]
[1733229014558,0.36799495,94952.0,94951.0,0.00145131]
[1733229014801,0.36899495,94952.0,94951.0,0.00145131]
[1733229015308,0.01163257,94952.0,94951.0,0.00145131]
[1733229015531,0.00463257,94952.0,94951.0,0.00145131]
[1733229015753,0.01163257,94952.0,94951.0,0.00145131]
[1733229016205,0.00563257,94952.0,94951.0,0.00145131]
[1733229017137,0.00463257,94952.0,94951.0,0.00145131]
[1733229017647,0.00463257,94952.0,94951.0,0.1061639]
[1733229017847,0.001727,94955.0,94951.0,0.1061639]
[1733229017995,0.001727,94955.0,94952.0,0.10471259]
[1733229018223,0.00462348,94954.0,94952.0,0.10471259]
[1733229018913,0.36063,94953.0,94952.0,0.10471259]
[1733229019082,0.15,94953.0,94952.0,0.10471259]
[1733229019289,0.15462117,94953.0,94952.0,0.10471259]
[1733229019488,0.210632,94952.0,94951.0,0.00145131]
[1733229019732,0.360632,94952.0,94951.0,0.00145131]
[1733229019958,0.36525621,94952.0,94951.0,0.00145131]
[1733229021750,0.00462421,94952.0,94951.0,0.00145131]
[1733229021972,0.00462421,94952.0,94951.0,0.08245131]
[1733229022433,0.00562421,94952.0,94951.0,0.08245131]
[1733229022919,0.00462421,94952.0,94951.0,0.08245131]
[1733229024131,0.210628,94954.0,94951.0,0.08245131]
[1733229024332,0.00459972,94952.0,94951.0,0.08245131]
[1733229024539,0.001727,94955.0,94951.0,0.1871639]
[1733229024751,0.00459972,94952.0,94951.0,0.08245131]
[1733229024969,0.001727,94955.0,94951.0,0.3977979]
[1733229025170,0.001727,94955.0,94952.0,0.10471259]
[1733229025380,0.001727,94955.0,94953.0,0.0474]
[1733229025598,0.001727,94955.0,94954.0,0.210628]
[1733229025789,0.001727,94955.0,94954.0,0.39454059]
[1733229026330,0.001727,94955.0,94954.0,0.67797221]
[1733229026530,0.001727,94955.0,94954.0,0.39454059]
[1733229026914,0.002727,94955.0,94954.0,0.39454059]
[1733229027768,0.002727,94955.0,94954.0,0.39654059]
[1733229032677,0.001727,94955.0,94954.0,0.39654059]
[1733229032897,0.001727,94955.0,94954.0,0.39454059]
[1733229033103,0.002727,94955.0,94954.0,0.39454059]
[1733229033311,0.003727,94955.0,94954.0,0.18891259]
[1733229033517,0.003727,94955.0,94954.0,0.19077624]
[1733229040375,0.003727,94955.0,94954.0,0.19069828]
[1733229044122,0.003727,94955.0,94954.0,0.39069828]
[1733229044384,0.003727,94955.0,94954.0,0.38883463]
[1733229044648,0.003727,94955.0,94954.0,0.67208854]
[1733229044896,0.003727,94955.0,94954.0,0.38883463]
[1733229045372,0.002727,94955.0,94954.0,0.38883463]
[1733229045606,0.003727,94955.0,94954.0,0.39683463]
[1733229046070,0.003727,94955.0,94954.0,0.19683463]
[1733229046278,0.002727,94955.0,94954.0,0.39369829]
[1733229046491,0.002727,94955.0,94954.0,0.39183463]
[1733229046896,0.002727,94955.0,94954.0,0.19183463]
[1733229047101,0.003727,94955.0,94954.0,0.20169837]
[1733229047516,0.003727,94955.0,94954.0,0.12249837]
[1733229052123,0.00844108,94955.0,94954.0,0.12249837]
[1733229052353,0.003727,94955.0,94954.0,0.12249837]
[1733229054854,0.02533368,94955.0,94954.0,0.12063463]
[1733229055365,0.03005164,94955.0,94954.0,0.12063463]
[1733229055727,0.00844496,94955.0,94954.0,0.12063463]
[1733229055933,0.00744496,94955.0,94954.0,0.11263463]
[1733229056180,0.00644496,94955.0,94954.0,0.10463463]
[1733229056409,0.00644496,94955.0,94954.0,0.11763463]
[1733229056410,0.003727,94955.0,94954.0,0.11763463]
[1733229056640,0.00733896,94955.0,94954.0,0.10963463]
[1733229056873,0.00733896,94955.0,94954.0,0.11163463]
[1733229057097,0.00733896,94955.0,94954.0,0.11563463]
[1733229060055,0.002727,94955.0,94954.0,0.2001985]
[1733229064762,0.002727,94955.0,94954.0,0.11563463]
[1733229064991,0.002727,94955.0,94954.0,0.11649813]
[1733229065255,0.2180842,94955.0,94954.0,0.11649813]
[1733229065749,0.0074582,94955.0,94954.0,0.11649813]
[1733229065984,0.0074582,94955.0,94954.0,0.11836199]
[1733229066216,0.002727,94955.0,94954.0,0.11836199]
[1733229066453,0.002727,94955.0,94954.0,0.19596199]
[1733229071602,0.002727,94955.0,94954.0,0.47963994]
[1733229071812,0.002727,94955.0,94954.0,0.47777608]
[1733229072228,0.002727,94955.0,94954.0,0.19409813]
[1733229072433,0.002727,94955.0,94954.0,0.19596186]
[1733229072869,0.002727,94955.0,94954.0,0.47990321]
[1733229073090,0.002727,94955.0,94954.0,0.47803948]
[1733229073592,0.002727,94955.0,94954.0,0.19409813]
[1733229073777,0.002727,94955.0,94954.0,0.19596186]
[1733229074006,0.002727,94955.0,94954.0,0.11836186]
[1733229074252,0.02895758,94955.0,94954.0,0.11649813]
[1733229074488,0.02895758,94955.0,94954.0,0.11836195]
[1733229074912,0.02895758,94955.0,94954.0,0.4023033]
[1733229075149,0.0074506,94955.0,94954.0,0.11649813]
[1733229076004,0.0074506,94955.0,94954.0,0.11249813]
[1733229076216,0.0064506,94955.0,94954.0,0.10649813]
[1733229076633,0.0064506,94955.0,94954.0,0.10749813]
[1733229077698,0.0064506,94955.0,94954.0,0.10649813]
[1733229078129,0.0064506,94955.0,94954.0,0.10749813]
[1733229096257,0.0064506,94955.0,94954.0,0.0028635]
[1733229096504,0.08419038,94955.0,94954.0,0.0028635]
[1733229096746,0.1304506,94955.0,94954.0,0.0028635]
[1733229096957,0.13259038,94955.0,94954.0,0.0028635]
[1733229097827,0.13259038,94955.0,94954.0,0.0018635]
[1733229098065,0.23143436,94955.0,94954.0,0.0018635]
[1733229098293,0.23229458,94955.0,94954.0,0.0008635]
[1733229098530,0.24029458,94955.0,94954.0,0.0018635]
[1733229098759,0.23729458,94955.0,94954.0,0.0008635]
[1733229099019,0.23229458,94955.0,94954.0,0.0008635]
[1733229099253,0.23229458,94955.0,94954.0,0.0018635]
[1733229099254,0.24029458,94955.0,94954.0,0.0018635]
[1733229100921,0.43273231,94954.0,94951.0,1e-08]
[1733229101163,0.288232,94952.0,94951.0,1e-08]
[1733229101430,0.483232,94952.0,94951.0,1e-08]
[1733229101682,0.6878163,94952.0,94951.0,1e-08]
[1733229101891,0.70275368,94952.0,94951.0,1e-08]
[1733229102109,0.80558514,94952.0,94951.0,1e-08]
[1733229102354,0.80558514,94952.0,94951.0,0.00100001]
[1733229102577,0.80558514,94952.0,94951.0,1e-08]
[1733229103026,0.81158514,94952.0,94951.0,0.00100001]
[1733229104801,0.81458514,94952.0,94951.0,0.00100001]
[1733229107248,0.81158514,94952.0,94951.0,0.00100001]
[1733229107469,0.81658514,94952.0,94951.0,0.00200001]
[1733229107895,0.81058514,94952.0,94951.0,0.00100001]
[1733229108149,0.81458514,94952.0,94951.0,1e-08]
[1733229108396,0.81058514,94952.0,94951.0,1e-08]
[1733229108881,0.81958514,94952.0,94951.0,1e-08]
[1733229109598,0.81958514,94952.0,94951.0,0.00086351]
[1733229110089,0.92508447,94952.0,94951.0,0.00086351]
[1733229112248,0.92508447,94952.0,94951.0,5.1e-07]
[1733229113637,1.12508447,94952.0,94951.0,5.1e-07]
[1733229114112,1.14890061,94952.0,94951.0,5.1e-07]
[1733229115082,1.14890061,94952.0,94939.0,0.0008635]
[1733229115083,0.732359,94940.0,94939.0,1e-08]
[1733229115295,0.93137239,94940.0,94939.0,1e-08]
[1733229115530,0.95274713,94940.0,94939.0,1e-08]
[1733229116426,0.75274713,94940.0,94939.0,1e-08]
[1733229116672,0.95974713,94940.0,94939.0,1e-08]
[1733229116886,0.96053387,94940.0,94939.0,1e-08]
[1733229117319,0.96453387,94940.0,94939.0,1e-08]
[1733229117958,0.76453387,94940.0,94939.0,1e-08]
[1733229118176,0.95753387,94940.0,94939.0,1e-08]
[1733229118631,0.96653387,94940.0,94939.0,1e-08]
[1733229119732,1.12645647,94940.0,94939.0,1e-08]
[1733229119947,1.25125001,94940.0,94939.0,1e-08]
[1733229120165,1.22743387,94940.0,94939.0,1e-08]
[1733229120385,1.13808047,94940.0,94939.0,1e-08]
[1733229120609,1.12508047,94940.0,94939.0,1e-08]
[1733229120831,0.93008047,94940.0,94939.0,1e-08]
[1733229121483,0.93008047,94940.0,94919.0,0.0008635]
[1733229121484,0.2,94928.0,94919.0,0.0008635]
[1733229121692,0.640403,94920.0,94919.0,0.0008635]
[1733229121926,0.74511559,94920.0,94919.0,0.0008635]
[1733229122143,0.74951908,94920.0,94919.0,0.0008635]
[1733229122799,0.77098263,94920.0,94919.0,0.0008635]
[1733229123253,0.77098263,94920.0,94919.0,0.00145102]
[1733229123514,0.87381409,94920.0,94919.0,0.00145102]
[1733229123959,0.87681409,94920.0,94919.0,0.00145102]
[1733229130633,0.79711409,94920.0,94919.0,0.00145102]
[1733229135169,0.79411409,94920.0,94919.0,0.00145102]
[1733229135589,0.80311409,94920.0,94919.0,0.00145102]
[1733229136243,0.39557004,94920.0,94919.0,0.00145102]
[1733229136682,0.39857004,94920.0,94919.0,0.07725102]
[1733229137330,0.39557004,94920.0,94919.0,0.07725102]
[1733229137787,0.38957004,94920.0,94919.0,0.07725102]
[1733229138029,0.47066584,94920.0,94919.0,0.07725102]
[1733229138681,0.39857004,94920.0,94919.0,0.07725102]
[1733229138902,0.38957004,94920.0,94919.0,0.07725102]
[1733229139351,0.39257004,94920.0,94919.0,0.07725102]
[1733229139566,0.38928761,94920.0,94919.0,0.07725102]
[1733229139783,0.38628761,94920.0,94919.0,0.07725102]
[1733229141233,0.38828761,94920.0,94919.0,0.07725102]
[1733229141486,0.38628761,94920.0,94919.0,0.07725102]
[1733229141695,0.38928761,94920.0,94919.0,0.07725102]
[1733229146078,0.00740349,94920.0,94919.0,0.07725102]
[1733229146298,0.003,94920.0,94919.0,0.07725102]
[1733229147410,0.00738222,94920.0,94919.0,0.07725102]
[1733229147681,0.003,94920.0,94919.0,0.07725102]
[1733229148180,0.00740415,94920.0,94919.0,0.07725102]
[1733229148411,0.003,94920.0,94919.0,0.07725102]
[1733229148645,0.00740415,94920.0,94919.0,0.18196361]
[1733229148845,0.003,94920.0,94919.0,0.18196361]
[1733229149596,0.00740415,94920.0,94919.0,0.18196361]
[1733229149835,0.003,94920.0,94919.0,0.18196361]
[1733229150093,0.00740415,94920.0,94919.0,0.18196361]
[1733229152240,0.00440415,94920.0,94919.0,0.18196361]
[1733229152715,0.00441451,94920.0,94919.0,0.18196361]
[1733229152941,0.421391,94924.0,94919.0,0.18196361]
[1733229153157,0.210695,94924.0,94920.0,0.10471259]
[1733229154651,0.421391,94924.0,94920.0,0.10471259]
[1733229155142,0.422391,94924.0,94920.0,0.10471259]
[1733229156152,0.210703,94920.0,94919.0,0.00145102]
[1733229157591,0.21284278,94920.0,94919.0,0.00145102]
[1733229165035,0.21484278,94920.0,94919.0,0.00145102]
[1733229165258,0.21384278,94920.0,94919.0,0.00145102]
[1733229165701,0.21784278,94920.0,94919.0,0.00145102]
[1733229165952,0.215703,94920.0,94919.0,0.00145102]
[1733229166390,0.22007565,94920.0,94919.0,0.00145102]
[1733229167501,0.22007565,94920.0,94919.0,0.07765102]
[1733229171524,0.22180325,94920.0,94919.0,0.07765102]
[1733229173945,0.01110025,94920.0,94919.0,0.07765102]
[1733229175464,0.01110025,94920.0,94919.0,0.18236361]
[1733229175908,0.01091371,94920.0,94919.0,0.41922087]
[1733229176388,0.0017276,94920.0,94919.0,0.41922087]
[1733229176609,0.0017276,94920.0,94919.0,0.41923215]
[1733229176826,0.00591371,94920.0,94919.0,0.41923215]
[1733229177016,0.0027276,94920.0,94919.0,0.41923215]
[1733229177466,0.0027276,94920.0,94919.0,0.18236361]
[1733229177467,0.00691371,94920.0,94919.0,0.18236361]
[1733229178531,0.21761671,94920.0,94919.0,0.18236361]
[1733229179185,0.06998654,94920.0,94919.0,0.18236361]
[1733229180492,0.00591371,94920.0,94919.0,0.18236361]
[1733229182755,0.21661671,94920.0,94919.0,0.18236361]
[1733229184088,0.21661671,94920.0,94919.0,0.18224438]
[1733229185431,0.00591371,94920.0,94919.0,0.18224438]
[1733229186101,0.00591371,94920.0,94919.0,0.00133179]
[1733229186320,0.00366285,94920.0,94919.0,0.00133179]
[1733229189472,0.00366285,94920.0,94919.0,0.23833094]
[1733229190342,0.00366285,94920.0,94919.0,0.00133179]
[1733229190763,0.00366285,94920.0,94919.0,0.23833094]
[1733229192283,0.00366285,94920.0,94919.0,0.00133179]
[1733229194272,0.00539045,94920.0,94919.0,0.00133179]
[1733229195576,0.00539045,94920.0,94919.0,0.10604438]
[1733229195797,0.00539045,94920.0,94919.0,0.43580888]
[1733229196013,0.0017276,94920.0,94919.0,0.64464938]
[1733229197557,0.0027276,94920.0,94919.0,0.64464938]
[1733229199528,0.0037276,94920.0,94919.0,0.64864938]
[1733229200648,0.0037276,94920.0,94919.0,0.84864938]
[1733229200861,0.0037276,94920.0,94919.0,0.99864938]
[1733229201507,0.0037276,94920.0,94919.0,1.03149326]
[1733229201743,0.0037276,94920.0,94919.0,1.02592707]
[1733229202230,0.0037276,94920.0,94919.0,1.05877206]
[1733229202443,0.0017276,94920.0,94919.0,1.05477206]
[1733229202664,0.0037276,94920.0,94919.0,1.05677206]
[1733229203329,0.0017276,94924.0,94923.0,0.610697]
[1733229203545,0.0017276,94924.0,94923.0,0.99360959]
[1733229203795,0.0017276,94924.0,94923.0,1.02643263]
[1733229204022,0.0017276,94924.0,94923.0,1.02634593]
[1733229204507,0.0017276,94924.0,94923.0,0.99352289]
[1733229205719,0.0027276,94924.0,94923.0,1.00152289]
[1733229206218,0.0037276,94924.0,94923.0,1.01052289]
[1733229208154,0.0037276,94924.0,94923.0,1.42882191]
[1733229210364,0.0037276,94924.0,94923.0,1.01052289]
[1733229213855,0.0037276,94924.0,94923.0,1.03352289]
[1733229217404,0.0037276,94924.0,94923.0,1.03438639]
[1733229217619,0.0037276,94924.0,94923.0,1.01138639]
[1733229217829,0.0037276,94924.0,94923.0,1.03438639]
[1733229218262,0.0037276,94924.0,94923.0,0.81147309]
[1733229218705,0.0037276,94924.0,94923.0,1.09471109]
[1733229220671,0.0037276,94924.0,94923.0,0.81147309]
[1733229221120,0.0037276,94924.0,94923.0,1.03438639]
[1733229224784,0.0037276,94924.0,94923.0,1.02638639]
[1733229225044,0.0027276,94924.0,94923.0,1.02638639]
[1733229225267,0.0037276,94924.0,94923.0,1.03438639]
[1733229225496,0.0037276,94924.0,94923.0,1.06719784]
[1733229225716,0.0027276,94924.0,94923.0,1.05919784]
[1733229226158,0.0037276,94924.0,94923.0,1.06819784]
[1733229226592,0.0037276,94924.0,94923.0,1.05919784]
[1733229226808,0.0047276,94924.0,94923.0,1.06819784]
[1733229234075,0.0047276,94924.0,94923.0,1.06958161]
[1733229234315,0.00334383,94924.0,94923.0,1.06819784]
[1733229237341,0.00334383,94924.0,94923.0,1.38681223]
[1733229237609,0.00334383,94924.0,94923.0,1.38780453]
[1733229238296,0.00334383,94924.0,94923.0,1.06919014]
[1733229239622,0.00334383,94924.0,94923.0,1.18009014]
[1733229240966,0.00235153,94924.0,94923.0,1.17909784]
[1733229241174,0.0022867,94924.0,94923.0,1.17909784]
[1733229243688,0.0017272,94940.0,94923.0,1.17909784]
[1733229243689,0.0017272,94940.0,94938.0,0.8657763]
[1733229243910,0.0017272,94940.0,94938.0,1.16370034]
[1733229244805,0.00167793,94940.0,94939.0,0.6838133]
[1733229245026,0.00167793,94940.0,94939.0,0.82133734]
[1733229245240,0.00167793,94940.0,94939.0,0.71043734]
[1733229247356,0.00167793,94940.0,94939.0,0.71943734]
[1733229247786,0.00167793,94940.0,94939.0,0.72843734]
[1733229248449,0.00167793,94940.0,94939.0,0.91863734]
[1733229248696,0.00167793,94940.0,94939.0,0.96663734]
[1733229250535,9.3e-07,94940.0,94939.0,0.96663734]
[1733229250758,0.001727,94955.0,94951.0,0.3999133]
[1733229250986,0.001727,94955.0,94951.0,1.47911603]
[1733229251215,0.001727,94955.0,94951.0,1.16037134]
[1733229251911,0.00097392,94952.0,94951.0,1.16937134]
[1733229252125,0.00097392,94952.0,94951.0,1.17895886]
[1733229254163,0.00097392,94952.0,94951.0,1.19959491]
[1733229254592,0.00097392,94952.0,94951.0,1.51798916]
[1733229255254,0.00097392,94952.0,94951.0,1.19959491]
[1733229255902,0.00097392,94952.0,94951.0,1.22617085]
[1733229256962,0.00097392,94952.0,94951.0,1.21717085]
[1733229257386,0.00097392,94952.0,94951.0,1.22517085]
[1733229257815,0.00097392,94952.0,94951.0,1.21717085]
[1733229258695,0.00097392,94952.0,94951.0,1.20817085]
[1733229259155,0.00097392,94952.0,94951.0,1.21717085]
[1733229260002,0.00097392,94952.0,94951.0,1.22617085]
[1733229261148,0.00097392,94952.0,94951.0,1.09777085]
[1733229261377,0.00097392,94952.0,94951.0,0.9432348]
[1733229261830,0.00097392,94952.0,94951.0,0.91042335]
[1733229262267,0.00097392,94952.0,94951.0,0.71051005]
[1733229262482,0.00097392,94952.0,94951.0,0.73351005]
[1733229264301,0.00097392,94952.0,94951.0,0.73437335]
[1733229265400,0.00097392,94952.0,94951.0,0.93428665]
[1733229265619,0.02831475,94964.0,94963.0,0.360608]
[1733229265845,0.02831475,94964.0,94963.0,0.46532059]
[1733229266989,0.02831475,94964.0,94963.0,0.47332059]
[1733229267412,0.02831475,94964.0,94963.0,0.89123864]
[1733229267622,0.02831475,94964.0,94963.0,0.90023864]
[1733229268091,0.02831475,94964.0,94963.0,0.48232059]
[1733229268316,0.02831475,94964.0,94963.0,0.90023864]
[1733229268526,0.02831475,94964.0,94963.0,0.48232059]
[1733229268963,0.02831475,94964.0,94963.0,0.9003989]
[1733229269452,0.02831475,94964.0,94963.0,0.48232059]
[1733229269660,0.02831475,94964.0,94963.0,0.90042815]
[1733229270087,0.0822,94966.0,94963.0,0.90042815]
[1733229270302,0.0822,94966.0,94965.0,0.31531559]
[1733229272069,0.0822,94966.0,94965.0,0.74219707]
[1733229272285,0.0822,94966.0,94965.0,0.32408951]